[Event "December 12 Late 2023"]
[Site "https://www.chess.com"]
[Date "2023.12.12"]
[Round "10"]
[White "Bazzano, Sebastian"]
[Black "Arnold, Ken"]
[Result "0-1"]
[Board "68"]
[TimeControl "180+1"]
[WhiteFideId "104566"]
[BlackFideId "2056836"]
[WhiteElo "2314"]
[BlackElo "2453"]
[WhiteTeam "ARG"]
[BlackTeam "USA"]
[WhiteClock "0:00:11"]
[BlackClock "0:00:55"]

1. d4 {[%clk 0:03:00]}  Nf6 {[%clk 0:02:59]} 2. Bf4 {[%clk 0:02:59]}  e6 {[%clk 0:02:58]} 3. e3 {[%clk 0:02:59]}  d5 {[%clk 0:02:59]} 4. Nd2 {[%clk 0:02:59]}  Bd6 {[%clk 0:02:59]} 5. Bg3 {[%clk 0:02:59]}  h5 {[%clk 0:02:58]} 6. Bh4 {[%clk 0:02:52]}  c5 {[%clk 0:02:55]} 7. c3 {[%clk 0:02:51]}  Qb6 {[%clk 0:02:53]} 8. Bxf6 {[%clk 0:02:45]}  gxf6 {[%clk 0:02:52]} 9. Qb3 {[%clk 0:02:45]}  c4 {[%clk 0:02:52]} 10. Qc2 {[%clk 0:02:42]}  f5 {[%clk 0:02:51]} 11. Ngf3 {[%clk 0:02:37]}  Nd7 {[%clk 0:02:43]} 12. b3 {[%clk 0:02:33]}  cxb3 {[%clk 0:02:41]} 13. axb3 {[%clk 0:02:34]}  Nf6 {[%clk 0:02:41]} 14. Bd3 {[%clk 0:02:22]}  Bd7 {[%clk 0:02:40]} 15. O-O {[%clk 0:02:18]}  Rc8 {[%clk 0:02:37]} 16. c4 {[%clk 0:02:15]}  Bb8 {[%clk 0:02:32]} 17. c5 {[%clk 0:01:46]}  Qc7 {[%clk 0:02:30]} 18. Ne5 {[%clk 0:01:46]}  Ng4 {[%clk 0:02:28]} 19. Nxg4 {[%clk 0:01:29]}  hxg4 {[%clk 0:02:25]} 20. g3 {[%clk 0:01:29]}  Ke7 {[%clk 0:02:03]} 21. Rfb1 {[%clk 0:01:25]}  Rh6 {[%clk 0:01:56]} 22. Bf1 {[%clk 0:01:24]}  Rch8 {[%clk 0:01:53]} 23. Bg2 {[%clk 0:01:24]}  Bb5 {[%clk 0:01:47]} 24. h4 {[%clk 0:01:06]}  Rxh4 {[%clk 0:01:44]} 25. Nf1 {[%clk 0:00:49]}  R4h5 {[%clk 0:01:25]} 26. c6 {[%clk 0:00:33]}  bxc6 {[%clk 0:01:20]} 27. Qc5+ {[%clk 0:00:32]}  Qd6 {[%clk 0:01:19]} 28. Qxd6+ {[%clk 0:00:31]}  Kxd6 {[%clk 0:01:19]} 29. Nd2 {[%clk 0:00:26]}  Kc7 {[%clk 0:01:06]} 30. b4 {[%clk 0:00:25]}  Kb6 {[%clk 0:01:02]} 31. Nb3 {[%clk 0:00:25]}  Bd6 {[%clk 0:00:58]} 32. Nc5 {[%clk 0:00:20]}  Bxc5 {[%clk 0:00:58]} 33. bxc5+ {[%clk 0:00:15]}  Kb7 {[%clk 0:00:57]} 34. Bf1 {[%clk 0:00:11]}  Rh1+ {[%clk 0:00:55]} 0-1

[Event "December 12 Late 2023"]
[Site "https://www.chess.com"]
[Date "2023.12.12"]
[Round "10"]
[White "Flash_BJ"]
[Black "Weisz, Bryan"]
[Result "1-0"]
[Board "70"]
[TimeControl "180+1"]
[BlackFideId "30934133"]
[WhiteElo "2236"]
[BlackElo "2444"]
[BlackTeam "USA"]
[WhiteClock "0:01:41"]
[BlackClock "0:01:58"]

1. g3 {[%clk 0:03:00]}  Nf6 {[%clk 0:03:00]} 2. Bg2 {[%clk 0:03:01]}  d5 {[%clk 0:03:01]} 3. c4 {[%clk 0:03:00]}  dxc4 {[%clk 0:03:01]} 4. Qa4+ {[%clk 0:03:00]}  c6 {[%clk 0:03:01]} 5. Qxc4 {[%clk 0:03:00]}  b5 {[%clk 0:03:02]} 6. Qc2 {[%clk 0:03:00]}  Na6 {[%clk 0:03:02]} 7. Qxc6+ {[%clk 0:02:50]}  Nd7 {[%clk 0:02:54]} 8. Qxa8 {[%clk 0:02:47]}  Nb4 {[%clk 0:02:55]} 9. Na3 {[%clk 0:02:46]}  g6 {[%clk 0:02:53]} 10. Qxa7 {[%clk 0:02:41]}  Bg7 {[%clk 0:02:52]} 11. Nf3 {[%clk 0:02:32]}  O-O {[%clk 0:02:52]} 12. O-O {[%clk 0:02:32]}  Nf6 {[%clk 0:02:44]} 13. Qd4 {[%clk 0:02:27]}  Qa5 {[%clk 0:02:39]} 14. Qc5 {[%clk 0:02:18]}  Ne4 {[%clk 0:02:35]} 15. Qxb5 {[%clk 0:02:11]}  Qxb5 {[%clk 0:02:22]} 16. Nxb5 {[%clk 0:02:03]}  Nc2 {[%clk 0:02:23]} 17. Rb1 {[%clk 0:02:02]}  Be6 {[%clk 0:02:17]} 18. b3 {[%clk 0:01:59]}  Ra8 {[%clk 0:02:17]} 19. a4 {[%clk 0:01:58]}  Nb4 {[%clk 0:02:13]} 20. d3 {[%clk 0:01:55]}  Nc5 {[%clk 0:02:11]} 21. Nfd4 {[%clk 0:01:51]}  Rd8 {[%clk 0:02:06]} 22. Nxe6 {[%clk 0:01:49]}  Nxe6 {[%clk 0:02:06]} 23. Ba3 {[%clk 0:01:46]}  Nc2 {[%clk 0:02:06]} 24. Bxe7 {[%clk 0:01:45]}  Re8 {[%clk 0:02:06]} 25. Bd6 {[%clk 0:01:41]}  Na3 {[%clk 0:01:58]} 26. Bxa3 {[%clk 0:01:41]} 1-0

[Event "December 12 Late 2023"]
[Site "https://www.chess.com"]
[Date "2023.12.12"]
[Round "10"]
[White "Clarke, Matthew"]
[Black "Bold, Andre"]
[Result "0-1"]
[Board "71"]
[TimeControl "180+1"]
[WhiteFideId "3227804"]
[BlackFideId "16208471"]
[WhiteElo "2231"]
[BlackElo "2444"]
[WhiteTeam "AUS"]
[BlackTeam "GER"]
[WhiteClock "0:00:00"]
[BlackClock "0:00:44"]

1. d4 {[%clk 0:03:00]}  d5 {[%clk 0:02:59]} 2. c4 {[%clk 0:03:01]}  c6 {[%clk 0:02:59]} 3. cxd5 {[%clk 0:03:01]}  cxd5 {[%clk 0:03:00]} 4. Bf4 {[%clk 0:03:01]}  Nc6 {[%clk 0:03:00]} 5. e3 {[%clk 0:03:01]}  Nf6 {[%clk 0:03:00]} 6. Bd3 {[%clk 0:03:00]}  Qb6 {[%clk 0:02:56]} 7. Nc3 {[%clk 0:03:00]}  a6 {[%clk 0:02:47]} 8. Nge2 {[%clk 0:02:56]}  Bg4 {[%clk 0:02:47]} 9. f3 {[%clk 0:02:46]}  Bh5 {[%clk 0:02:46]} 10. O-O {[%clk 0:02:45]}  e6 {[%clk 0:02:45]} 11. Na4 {[%clk 0:02:28]}  Qa5 {[%clk 0:02:35]} 12. Rc1 {[%clk 0:02:20]}  Bg6 {[%clk 0:02:28]} 13. Bxg6 {[%clk 0:02:18]}  hxg6 {[%clk 0:02:27]} 14. a3 {[%clk 0:02:10]}  Nh5 {[%clk 0:02:12]} 15. b4 {[%clk 0:01:49]}  Qd8 {[%clk 0:02:11]} 16. Qd3 {[%clk 0:01:33]}  Nxf4 {[%clk 0:02:09]} 17. Nxf4 {[%clk 0:01:34]}  Qh4 {[%clk 0:01:51]} 18. Nh3 {[%clk 0:01:10]}  Bd6 {[%clk 0:01:41]} 19. b5 {[%clk 0:01:09]}  axb5 {[%clk 0:01:35]} 20. Qxb5 {[%clk 0:01:09]}  O-O {[%clk 0:01:15]} 21. Qxb7 {[%clk 0:00:47]}  Na5 {[%clk 0:01:15]} 22. Qb2 {[%clk 0:00:38]}  Nc4 {[%clk 0:01:12]} 23. Qb5 {[%clk 0:00:29]}  Rfb8 {[%clk 0:01:04]} 24. Qc6 {[%clk 0:00:24]}  Bxa3 {[%clk 0:01:01]} 25. Ra1 {[%clk 0:00:22]}  Bf8 {[%clk 0:00:58]} 26. Nc5 {[%clk 0:00:21]}  Rxa1 {[%clk 0:00:56]} 27. Rxa1 {[%clk 0:00:22]}  Nxe3 {[%clk 0:00:53]} 28. f4 {[%clk 0:00:00]}  Rb2 {[%clk 0:00:44]} 0-1

[Event "December 12 Late 2023"]
[Site "https://www.chess.com"]
[Date "2023.12.12"]
[Round "10"]
[White "Nadera, Barlo A."]
[Black "Urbina Perez, Juan Antonio"]
[Result "1-0"]
[Board "72"]
[TimeControl "180+1"]
[WhiteFideId "5200598"]
[BlackFideId "2217368"]
[WhiteElo "2220"]
[BlackElo "2438"]
[WhiteTeam "PHI"]
[BlackTeam "ESP"]
[WhiteClock "0:01:21"]
[BlackClock "0:00:07"]

1. d4 {[%clk 0:03:00]}  Nf6 {[%clk 0:02:56]} 2. c4 {[%clk 0:03:00]}  d6 {[%clk 0:02:57]} 3. Nc3 {[%clk 0:03:01]}  e5 {[%clk 0:02:57]} 4. Nf3 {[%clk 0:02:59]}  e4 {[%clk 0:02:57]} 5. Ng5 {[%clk 0:02:59]}  Qe7 {[%clk 0:02:57]} 6. g3 {[%clk 0:02:55]}  h6 {[%clk 0:02:53]} 7. Nh3 {[%clk 0:02:55]}  Bf5 {[%clk 0:02:53]} 8. Bg2 {[%clk 0:02:55]}  c6 {[%clk 0:02:48]} 9. O-O {[%clk 0:02:52]}  Qd7 {[%clk 0:02:48]} 10. Nf4 {[%clk 0:02:44]}  g5 {[%clk 0:02:48]} 11. f3 {[%clk 0:02:38]}  exf3 {[%clk 0:02:38]} 12. Bxf3 {[%clk 0:02:25]}  gxf4 {[%clk 0:02:37]} 13. Bxf4 {[%clk 0:02:25]}  Na6 {[%clk 0:02:26]} 14. Qd2 {[%clk 0:02:23]}  O-O-O {[%clk 0:02:18]} 15. e4 {[%clk 0:02:22]}  Bh3 {[%clk 0:02:15]} 16. Rfe1 {[%clk 0:02:21]}  Bg7 {[%clk 0:02:01]} 17. a3 {[%clk 0:02:20]}  Ng4 {[%clk 0:01:43]} 18. b4 {[%clk 0:02:15]}  Nc7 {[%clk 0:01:12]} 19. Rad1 {[%clk 0:02:10]}  f5 {[%clk 0:01:10]} 20. b5 {[%clk 0:02:02]}  cxb5 {[%clk 0:01:03]} 21. cxb5 {[%clk 0:01:55]}  fxe4 {[%clk 0:01:01]} 22. Bxe4 {[%clk 0:01:52]}  Nxb5 {[%clk 0:00:53]} 23. Nxb5 {[%clk 0:01:46]}  Qxb5 {[%clk 0:00:54]} 24. Rb1 {[%clk 0:01:43]}  Qa4 {[%clk 0:00:35]} 25. Rec1+ {[%clk 0:01:39]}  Kd7 {[%clk 0:00:28]} 26. Rxb7+ {[%clk 0:01:38]}  Ke6 {[%clk 0:00:16]} 27. Rxg7 {[%clk 0:01:34]}  d5 {[%clk 0:00:11]} 28. Bf3 {[%clk 0:01:28]}  Rhg8 {[%clk 0:00:10]} 29. Qe2+ {[%clk 0:01:23]}  Kf5 {[%clk 0:00:08]} 30. Qd3+ {[%clk 0:01:22]}  Kf6 {[%clk 0:00:07]} 31. Qg6# {[%clk 0:01:21]} 1-0

[Event "December 12 Late 2023"]
[Site "https://www.chess.com"]
[Date "2023.12.12"]
[Round "10"]
[White "Balla, Tamas-Kristof"]
[Black "Osmonbekov, Talaibek"]
[Result "1-0"]
[Board "74"]
[TimeControl "180+1"]
[WhiteFideId "1208497"]
[BlackFideId "2017253"]
[WhiteElo "2379"]
[BlackElo "2283"]
[WhiteTeam "ROU"]
[BlackTeam "USA"]
[WhiteClock "0:00:22"]
[BlackClock "0:00:15"]

1. e4 {[%clk 0:03:00]}  c5 {[%clk 0:03:00]} 2. Nf3 {[%clk 0:02:58]}  d6 {[%clk 0:03:00]} 3. d4 {[%clk 0:02:58]}  cxd4 {[%clk 0:03:01]} 4. Nxd4 {[%clk 0:02:58]}  Nf6 {[%clk 0:03:02]} 5. Nc3 {[%clk 0:02:58]}  g6 {[%clk 0:03:02]} 6. f3 {[%clk 0:02:52]}  Nc6 {[%clk 0:03:01]} 7. Be3 {[%clk 0:02:51]}  Bg7 {[%clk 0:03:00]} 8. Qd2 {[%clk 0:02:50]}  O-O {[%clk 0:02:58]} 9. O-O-O {[%clk 0:02:50]}  d5 {[%clk 0:02:59]} 10. Nxc6 {[%clk 0:02:27]}  bxc6 {[%clk 0:02:59]} 11. exd5 {[%clk 0:02:27]}  Nxd5 {[%clk 0:02:49]} 12. Nxd5 {[%clk 0:02:26]}  cxd5 {[%clk 0:02:48]} 13. Qxd5 {[%clk 0:02:18]}  Qc7 {[%clk 0:02:48]} 14. Qxa8 {[%clk 0:02:11]}  Bf5 {[%clk 0:02:47]} 15. Qxf8+ {[%clk 0:02:09]}  Kxf8 {[%clk 0:02:43]} 16. Bd3 {[%clk 0:02:08]}  Be6 {[%clk 0:02:31]} 17. a3 {[%clk 0:01:27]}  Qe5 {[%clk 0:02:22]} 18. Kd2 {[%clk 0:01:13]}  Qxb2 {[%clk 0:02:04]} 19. Rb1 {[%clk 0:01:13]}  Qc3+ {[%clk 0:02:04]} 20. Ke2 {[%clk 0:01:12]}  Be5 {[%clk 0:01:34]} 21. Bh6+ {[%clk 0:01:07]}  Ke8 {[%clk 0:01:27]} 22. Rhd1 {[%clk 0:01:00]}  f6 {[%clk 0:01:15]} 23. Kf1 {[%clk 0:00:23]}  Qxa3 {[%clk 0:01:04]} 24. Bb5+ {[%clk 0:00:22]}  Kf7 {[%clk 0:01:01]} 25. Rd8 {[%clk 0:00:23]}  g5 {[%clk 0:00:15]} 26. Be8+ {[%clk 0:00:22]} 1-0

[Event "December 12 Late 2023"]
[Site "https://www.chess.com"]
[Date "2023.12.12"]
[Round "10"]
[White "youngdinousaur"]
[Black "Rose, Felix"]
[Result "1-0"]
[Board "77"]
[TimeControl "180+1"]
[BlackFideId "5105722"]
[WhiteElo "2258"]
[BlackElo "2327"]
[BlackTeam "MEX"]
[WhiteClock "0:01:11"]
[BlackClock "0:00:57"]

1. d4 {[%clk 0:03:00]}  Nf6 {[%clk 0:02:58]} 2. Nf3 {[%clk 0:03:01]}  d5 {[%clk 0:02:59]} 3. Bf4 {[%clk 0:03:01]}  e6 {[%clk 0:02:58]} 4. e3 {[%clk 0:03:01]}  Bd6 {[%clk 0:02:58]} 5. c3 {[%clk 0:03:01]}  O-O {[%clk 0:02:57]} 6. Bg3 {[%clk 0:03:00]}  c5 {[%clk 0:02:57]} 7. Bd3 {[%clk 0:02:59]}  b6 {[%clk 0:02:58]} 8. Qe2 {[%clk 0:02:57]}  a5 {[%clk 0:02:58]} 9. Nbd2 {[%clk 0:02:56]}  Ba6 {[%clk 0:02:57]} 10. Ne5 {[%clk 0:02:54]}  Bxd3 {[%clk 0:02:52]} 11. Qxd3 {[%clk 0:02:55]}  Qc7 {[%clk 0:02:52]} 12. f4 {[%clk 0:02:53]}  Nc6 {[%clk 0:02:50]} 13. Bh4 {[%clk 0:02:51]}  Be7 {[%clk 0:02:45]} 14. g4 {[%clk 0:02:32]}  Nxg4 {[%clk 0:02:19]} 15. Bxe7 {[%clk 0:02:24]}  Ngxe5 {[%clk 0:02:16]} 16. fxe5 {[%clk 0:02:23]}  Nxe7 {[%clk 0:02:14]} 17. O-O-O {[%clk 0:02:20]}  cxd4 {[%clk 0:02:11]} 18. exd4 {[%clk 0:02:21]}  Rfb8 {[%clk 0:02:04]} 19. Rhg1 {[%clk 0:02:20]}  b5 {[%clk 0:02:04]} 20. Qg3 {[%clk 0:02:19]}  Nf5 {[%clk 0:02:01]} 21. Qg5 {[%clk 0:02:13]}  b4 {[%clk 0:02:00]} 22. c4 {[%clk 0:02:05]}  dxc4 {[%clk 0:02:00]} 23. Rdf1 {[%clk 0:02:05]}  g6 {[%clk 0:01:55]} 24. Ne4 {[%clk 0:01:54]}  c3 {[%clk 0:01:48]} 25. Nf6+ {[%clk 0:01:54]}  Kg7 {[%clk 0:01:20]} 26. Nh5+ {[%clk 0:01:37]}  Kf8 {[%clk 0:01:17]} 27. Rxf5 {[%clk 0:01:22]}  cxb2+ {[%clk 0:01:16]} 28. Kb1 {[%clk 0:01:22]}  exf5 {[%clk 0:01:09]} 29. Qh6+ {[%clk 0:01:14]}  Ke8 {[%clk 0:01:01]} 30. Nf6+ {[%clk 0:01:13]}  Kd8 {[%clk 0:00:57]} 31. Qf8# {[%clk 0:01:11]} 1-0

[Event "December 12 Late 2023"]
[Site "https://www.chess.com"]
[Date "2023.12.12"]
[Round "10"]
[White "Sarkar, Justin"]
[Black "Ghosh, Chanchal Kumer"]
[Result "1/2-1/2"]
[Board "80"]
[TimeControl "180+1"]
[WhiteFideId "2010011"]
[BlackFideId "10201858"]
[WhiteElo "2295"]
[BlackElo "2113"]
[WhiteTeam "USA"]
[BlackTeam "BAN"]
[WhiteClock "0:00:02"]
[BlackClock "0:00:10"]

1. d4 {[%clk 0:02:54]}  d5 {[%clk 0:02:59]} 2. c4 {[%clk 0:02:53]}  e6 {[%clk 0:03:00]} 3. Nc3 {[%clk 0:02:53]}  Nf6 {[%clk 0:03:00]} 4. Bg5 {[%clk 0:02:53]}  Be7 {[%clk 0:02:59]} 5. e3 {[%clk 0:02:52]}  O-O {[%clk 0:02:59]} 6. Nf3 {[%clk 0:02:52]}  a6 {[%clk 0:02:59]} 7. cxd5 {[%clk 0:02:35]}  exd5 {[%clk 0:02:59]} 8. Rc1 {[%clk 0:02:29]}  c6 {[%clk 0:02:47]} 9. Qc2 {[%clk 0:02:25]}  Bg4 {[%clk 0:02:41]} 10. Ne5 {[%clk 0:02:21]}  Be6 {[%clk 0:02:37]} 11. Bd3 {[%clk 0:02:20]}  h6 {[%clk 0:02:36]} 12. Bxf6 {[%clk 0:02:11]}  Bxf6 {[%clk 0:02:36]} 13. f4 {[%clk 0:02:10]}  Bxe5 {[%clk 0:02:33]} 14. fxe5 {[%clk 0:02:04]}  Qh4+ {[%clk 0:02:30]} 15. Qf2 {[%clk 0:01:41]}  Qxf2+ {[%clk 0:02:13]} 16. Kxf2 {[%clk 0:01:40]}  Nd7 {[%clk 0:02:13]} 17. Rhf1 {[%clk 0:01:28]}  f6 {[%clk 0:02:12]} 18. exf6 {[%clk 0:01:27]}  Nxf6 {[%clk 0:02:13]} 19. Kg1 {[%clk 0:01:25]}  Ng4 {[%clk 0:02:13]} 20. Rxf8+ {[%clk 0:01:13]}  Rxf8 {[%clk 0:02:11]} 21. Re1 {[%clk 0:01:13]}  Rf2 {[%clk 0:01:37]} 22. h3 {[%clk 0:00:39]}  Rd2 {[%clk 0:01:36]} 23. Rd1 {[%clk 0:00:30]}  Rxd1+ {[%clk 0:00:57]} 24. Nxd1 {[%clk 0:00:30]}  Nf6 {[%clk 0:00:57]} 25. Nc3 {[%clk 0:00:30]}  Kf7 {[%clk 0:00:55]} 26. Na4 {[%clk 0:00:30]}  Ke7 {[%clk 0:00:54]} 27. Nc5 {[%clk 0:00:26]}  Bc8 {[%clk 0:00:55]} 28. Kf2 {[%clk 0:00:23]}  Kd6 {[%clk 0:00:53]} 29. b4 {[%clk 0:00:20]}  Nd7 {[%clk 0:00:44]} 30. Kf3 {[%clk 0:00:11]}  Nxc5 {[%clk 0:00:19]} 31. bxc5+ {[%clk 0:00:11]}  Kc7 {[%clk 0:00:16]} 32. Kf4 {[%clk 0:00:10]}  b6 {[%clk 0:00:16]} 33. cxb6+ {[%clk 0:00:07]}  Kxb6 {[%clk 0:00:17]} 34. Ke5 {[%clk 0:00:06]}  a5 {[%clk 0:00:15]} 35. Kd6 {[%clk 0:00:05]}  Bb7 {[%clk 0:00:12]} 36. h4 {[%clk 0:00:04]}  Bc8 {[%clk 0:00:12]} 37. g3 {[%clk 0:00:04]}  Bg4 {[%clk 0:00:11]} 38. a3 {[%clk 0:00:03]}  g5 {[%clk 0:00:10]} 39. hxg5 {[%clk 0:00:02]}  hxg5 {[%clk 0:00:11]} 40. Ke5 {[%clk 0:00:02]}  Bf3 {[%clk 0:00:10]} 41. Kf5 {[%clk 0:00:02]}  g4 {[%clk 0:00:09]} 42. e4 {[%clk 0:00:02]}  dxe4 {[%clk 0:00:08]} 43. Bxe4 {[%clk 0:00:02]}  Be2 {[%clk 0:00:08]} 44. Kf4 {[%clk 0:00:02]}  c5 {[%clk 0:00:08]} 45. Ke3 {[%clk 0:00:01]}  Bd1 {[%clk 0:00:08]} 46. dxc5+ {[%clk 0:00:01]}  Kxc5 {[%clk 0:00:06]} 47. Bf5 {[%clk 0:00:02]}  Kc4 {[%clk 0:00:05]} 48. Kd2 {[%clk 0:00:02]}  Bf3 {[%clk 0:00:05]} 49. Kc1 {[%clk 0:00:02]}  Kb3 {[%clk 0:00:05]} 50. Kb1 {[%clk 0:00:02]}  Kxa3 {[%clk 0:00:05]} 51. Ka1 {[%clk 0:00:03]}  Kb4 {[%clk 0:00:06]} 52. Be6 {[%clk 0:00:03]}  a4 {[%clk 0:00:07]} 53. Bf5 {[%clk 0:00:02]}  a3 {[%clk 0:00:08]} 54. Be6 {[%clk 0:00:02]}  Kc3 {[%clk 0:00:06]} 55. Bf5 {[%clk 0:00:02]}  Kb4 {[%clk 0:00:07]} 56. Be6 {[%clk 0:00:02]}  Be2 {[%clk 0:00:08]} 57. Bf5 {[%clk 0:00:02]}  Bd1 {[%clk 0:00:08]} 58. Be6 {[%clk 0:00:02]}  Kc3 {[%clk 0:00:08]} 59. Bf5 {[%clk 0:00:03]}  Kd4 {[%clk 0:00:08]} 60. Be6 {[%clk 0:00:02]}  Ke3 {[%clk 0:00:09]} 61. Bxg4 {[%clk 0:00:02]}  Bxg4 {[%clk 0:00:08]} 62. Ka2 {[%clk 0:00:02]}  Kf3 {[%clk 0:00:09]} 63. Kxa3 {[%clk 0:00:02]}  Kxg3 {[%clk 0:00:10]} 1/2-1/2

[Event "December 12 Late 2023"]
[Site "https://www.chess.com"]
[Date "2023.12.12"]
[Round "10"]
[White "Rios Escobar, Adan"]
[Black "Tarnowska, Aleksandra"]
[Result "1-0"]
[Board "81"]
[TimeControl "180+1"]
[WhiteFideId "3403645"]
[BlackFideId "1180967"]
[WhiteElo "2365"]
[BlackElo "2199"]
[WhiteTeam "CHI"]
[BlackTeam "POL"]
[WhiteClock "0:00:14"]
[BlackClock "0:00:00"]

1. Nf3 {[%clk 0:03:00]}  d5 {[%clk 0:02:59]} 2. e3 {[%clk 0:02:54]}  Nf6 {[%clk 0:02:59]} 3. c4 {[%clk 0:02:53]}  c6 {[%clk 0:02:58]} 4. Nc3 {[%clk 0:02:51]}  Bg4 {[%clk 0:02:28]} 5. Qb3 {[%clk 0:02:44]}  Qb6 {[%clk 0:02:14]} 6. cxd5 {[%clk 0:02:39]}  Qxb3 {[%clk 0:02:07]} 7. axb3 {[%clk 0:02:40]}  Bxf3 {[%clk 0:01:56]} 8. gxf3 {[%clk 0:02:39]}  Nxd5 {[%clk 0:01:56]} 9. Nxd5 {[%clk 0:02:24]}  cxd5 {[%clk 0:01:56]} 10. Bb5+ {[%clk 0:02:23]}  Nc6 {[%clk 0:01:09]} 11. Ra6 {[%clk 0:02:20]}  Kd7 {[%clk 0:01:06]} 12. Bxc6+ {[%clk 0:02:19]}  bxc6 {[%clk 0:01:04]} 13. d4 {[%clk 0:02:18]}  Kc7 {[%clk 0:00:39]} 14. e4 {[%clk 0:02:16]}  e6 {[%clk 0:00:35]} 15. Bf4+ {[%clk 0:02:14]}  Kb7 {[%clk 0:00:32]} 16. Ra4 {[%clk 0:02:14]}  Be7 {[%clk 0:00:20]} 17. Ke2 {[%clk 0:02:14]}  Rhc8 {[%clk 0:00:13]} 18. b4 {[%clk 0:02:11]}  g5 {[%clk 0:00:06]} 19. Be3 {[%clk 0:02:08]}  f5 {[%clk 0:00:06]} 20. h4 {[%clk 0:02:01]}  f4 {[%clk 0:00:06]} 21. Bd2 {[%clk 0:02:00]}  h6 {[%clk 0:00:06]} 22. hxg5 {[%clk 0:02:00]}  Bxg5 {[%clk 0:00:06]} 23. Ra5 {[%clk 0:01:51]}  Kb6 {[%clk 0:00:05]} 24. Rha1 {[%clk 0:01:49]}  a6 {[%clk 0:00:05]} 25. Bc3 {[%clk 0:01:28]}  Rc7 {[%clk 0:00:04]} 26. R5a3 {[%clk 0:01:21]}  Rca7 {[%clk 0:00:03]} 27. Rg1 {[%clk 0:01:16]}  Re7 {[%clk 0:00:03]} 28. Rg4 {[%clk 0:01:14]}  Rf7 {[%clk 0:00:03]} 29. Bd2 {[%clk 0:01:14]}  Kb5 {[%clk 0:00:02]} 30. Ra5+ {[%clk 0:01:03]}  Kb6 {[%clk 0:00:03]} 31. Rc5 {[%clk 0:01:00]}  Rb8 {[%clk 0:00:03]} 32. b3 {[%clk 0:01:00]}  Rc8 {[%clk 0:00:03]} 33. Kd3 {[%clk 0:00:45]}  Ra8 {[%clk 0:00:03]} 34. Rg1 {[%clk 0:00:43]}  Rc7 {[%clk 0:00:01]} 35. Ra5 {[%clk 0:00:39]}  Rca7 {[%clk 0:00:01]} 36. Rg4 {[%clk 0:00:32]}  Rc8 {[%clk 0:00:01]} 37. Bxf4 {[%clk 0:00:30]}  Bxf4 {[%clk 0:00:02]} 38. Rxf4 {[%clk 0:00:30]}  Rg8 {[%clk 0:00:03]} 39. Rf6 {[%clk 0:00:30]}  Rg2 {[%clk 0:00:03]} 40. Ke3 {[%clk 0:00:29]}  dxe4 {[%clk 0:00:02]} 41. Rxh6 {[%clk 0:00:28]}  exf3 {[%clk 0:00:02]} 42. Rxe6 {[%clk 0:00:28]}  Rg1 {[%clk 0:00:01]} 43. Kxf3 {[%clk 0:00:18]}  Rf7+ {[%clk 0:00:02]} 44. Ke2 {[%clk 0:00:18]}  Rb1 {[%clk 0:00:02]} 45. Rc5 {[%clk 0:00:16]}  Rb2+ {[%clk 0:00:02]} 46. Kd3 {[%clk 0:00:14]}  Rfxf2 {[%clk 0:00:02]} 47. Rexc6+ {[%clk 0:00:13]}  Kb7 {[%clk 0:00:02]} 48. Rc7+ {[%clk 0:00:13]}  Kb8 {[%clk 0:00:03]} 49. Rc8+ {[%clk 0:00:14]}  Kb7 {[%clk 0:00:03]} 50. R8c7+ {[%clk 0:00:13]}  Kb8 {[%clk 0:00:04]} 51. Rh7 {[%clk 0:00:13]}  Rfd2+ {[%clk 0:00:03]} 52. Kc4 {[%clk 0:00:13]}  Rbc2+ {[%clk 0:00:03]} 53. Kd5 {[%clk 0:00:13]}  Rb2 {[%clk 0:00:02]} 54. b5 {[%clk 0:00:13]}  Rxb3 {[%clk 0:00:01]} 55. bxa6 {[%clk 0:00:14]}  Rb4 {[%clk 0:00:01]} 56. a7+ {[%clk 0:00:14]}  Ka8 {[%clk 0:00:00]} 57. Rc8+ {[%clk 0:00:14]} 1-0

[Event "December 12 Late 2023"]
[Site "https://www.chess.com"]
[Date "2023.12.12"]
[Round "10"]
[White "Biliy, Vadim"]
[Black "Demina, Marya"]
[Result "0-1"]
[Board "85"]
[TimeControl "180+1"]
[WhiteFideId "14114127"]
[BlackFideId "4195671"]
[WhiteElo "2279"]
[BlackElo "2154"]
[WhiteTeam "UKR"]
[BlackTeam "RUS"]
[WhiteClock "0:00:06"]
[BlackClock "0:00:13"]

1. d4 {[%clk 0:02:53]}  Nf6 {[%clk 0:02:59]} 2. Nf3 {[%clk 0:02:52]}  c5 {[%clk 0:03:00]} 3. e3 {[%clk 0:02:50]}  cxd4 {[%clk 0:03:00]} 4. Nxd4 {[%clk 0:02:50]}  Nc6 {[%clk 0:02:59]} 5. c4 {[%clk 0:02:47]}  g6 {[%clk 0:02:59]} 6. Nc3 {[%clk 0:02:42]}  Bg7 {[%clk 0:02:59]} 7. Be2 {[%clk 0:02:40]}  d5 {[%clk 0:02:55]} 8. Nxc6 {[%clk 0:02:32]}  bxc6 {[%clk 0:02:55]} 9. cxd5 {[%clk 0:02:33]}  cxd5 {[%clk 0:02:55]} 10. Bb5+ {[%clk 0:02:32]}  Bd7 {[%clk 0:02:53]} 11. Bxd7+ {[%clk 0:02:20]}  Qxd7 {[%clk 0:02:53]} 12. O-O {[%clk 0:02:15]}  O-O {[%clk 0:02:53]} 13. Qe2 {[%clk 0:02:06]}  Rfd8 {[%clk 0:02:29]} 14. Rd1 {[%clk 0:02:05]}  e5 {[%clk 0:02:27]} 15. b3 {[%clk 0:01:59]}  Qf5 {[%clk 0:02:08]} 16. Bb2 {[%clk 0:01:51]}  d4 {[%clk 0:01:53]} 17. e4 {[%clk 0:01:49]}  Qe6 {[%clk 0:01:28]} 18. Na4 {[%clk 0:01:47]}  Rac8 {[%clk 0:01:22]} 19. Rac1 {[%clk 0:01:37]}  Bf8 {[%clk 0:01:21]} 20. Rxc8 {[%clk 0:01:30]}  Rxc8 {[%clk 0:01:19]} 21. Rc1 {[%clk 0:01:30]}  Rxc1+ {[%clk 0:01:10]} 22. Bxc1 {[%clk 0:01:30]}  Qc6 {[%clk 0:01:10]} 23. Bb2 {[%clk 0:01:07]}  Qxe4 {[%clk 0:00:48]} 24. Qxe4 {[%clk 0:01:02]}  Nxe4 {[%clk 0:00:49]} 25. f4 {[%clk 0:01:01]}  Bd6 {[%clk 0:00:44]} 26. fxe5 {[%clk 0:00:48]}  Bxe5 {[%clk 0:00:44]} 27. g3 {[%clk 0:00:48]}  f5 {[%clk 0:00:21]} 28. b4 {[%clk 0:00:45]}  Kf7 {[%clk 0:00:19]} 29. Nc5 {[%clk 0:00:44]}  Nxc5 {[%clk 0:00:18]} 30. bxc5 {[%clk 0:00:44]}  Ke6 {[%clk 0:00:18]} 31. Kf1 {[%clk 0:00:44]}  Kd5 {[%clk 0:00:18]} 32. Ba3 {[%clk 0:00:41]}  d3 {[%clk 0:00:15]} 33. Ke1 {[%clk 0:00:41]}  Bc3+ {[%clk 0:00:15]} 34. Kd1 {[%clk 0:00:36]}  Ba5 {[%clk 0:00:15]} 35. h3 {[%clk 0:00:33]}  Kd4 {[%clk 0:00:14]} 36. c6 {[%clk 0:00:32]}  Kd5 {[%clk 0:00:13]} 37. c7 {[%clk 0:00:26]}  Bxc7 {[%clk 0:00:13]} 38. Kd2 {[%clk 0:00:26]}  Kc4 {[%clk 0:00:13]} 39. g4 {[%clk 0:00:25]}  Ba5+ {[%clk 0:00:12]} 40. Kd1 {[%clk 0:00:23]}  Kd4 {[%clk 0:00:12]} 41. gxf5 {[%clk 0:00:21]}  gxf5 {[%clk 0:00:12]} 42. Bd6 {[%clk 0:00:19]}  Ke4 {[%clk 0:00:12]} 43. h4 {[%clk 0:00:19]}  f4 {[%clk 0:00:12]} 44. h5 {[%clk 0:00:18]}  f3 {[%clk 0:00:12]} 45. Bg3 {[%clk 0:00:18]}  Ke3 {[%clk 0:00:12]} 46. Bh4 {[%clk 0:00:16]}  f2 {[%clk 0:00:12]} 47. Bxf2+ {[%clk 0:00:14]}  Kxf2 {[%clk 0:00:12]} 48. h6 {[%clk 0:00:14]}  Ke3 {[%clk 0:00:11]} 49. a3 {[%clk 0:00:13]}  Kd4 {[%clk 0:00:10]} 50. a4 {[%clk 0:00:12]}  Kc4 {[%clk 0:00:10]} 51. Kc1 {[%clk 0:00:13]}  Kb3 {[%clk 0:00:10]} 52. Kd1 {[%clk 0:00:13]}  Kc3 {[%clk 0:00:10]} 53. Kc1 {[%clk 0:00:12]}  Kb3 {[%clk 0:00:09]} 54. Kd1 {[%clk 0:00:12]}  Kxa4 {[%clk 0:00:10]} 55. Kc1 {[%clk 0:00:13]}  Kb3 {[%clk 0:00:11]} 56. Kd1 {[%clk 0:00:13]}  Bc3 {[%clk 0:00:11]} 57. Kc1 {[%clk 0:00:13]}  Kc4 {[%clk 0:00:11]} 58. Kd1 {[%clk 0:00:13]}  a5 {[%clk 0:00:12]} 59. Kc1 {[%clk 0:00:13]}  a4 {[%clk 0:00:12]} 60. Kb1 {[%clk 0:00:13]}  a3 {[%clk 0:00:12]} 61. Kc1 {[%clk 0:00:11]}  Kb3 {[%clk 0:00:12]} 62. Kb1 {[%clk 0:00:06]}  a2+ {[%clk 0:00:13]} 0-1